[Event "Open Nuevo Centro. Jornada 2"]
[Site "Chess.com"]
[Date "2020.06.26"]
[Round "6"]
[White "Campos Gambuti, Luis María"]
[Black "Remolar Gallen, Jose"]
[Result "1/2-1/2"]
[WhiteElo "2415"]
[BlackElo "2355"]
[TimeControl "180+2"]
[EndTime "11:35:42 PDT"]
[Termination "Partida en tablas por mutuo acuerdo"]

1. d4 {[%clk 0:03:01.9]} 1... d6 {[%clk 0:02:59.9]} 2. e4 {[%clk 0:03:01.3]}
2... Nf6 {[%clk 0:03:01.1]} 3. Nc3 {[%clk 0:03:01.7]} 3... g6 {[%clk 0:03:02.5]}
4. Bg5 {[%clk 0:03:01.7]} 4... c6 {[%clk 0:03:00.2]} 5. Qd2 {[%clk 0:02:58.1]}
5... b5 {[%clk 0:02:57.9]} 6. f3 {[%clk 0:02:55.4]} 6... Nbd7 {[%clk 0:02:40.1]}
7. Bd3 {[%clk 0:02:45.9]} 7... e5 {[%clk 0:02:35.8]} 8. Nge2 {[%clk 0:02:36.3]}
8... h6 {[%clk 0:02:32.5]} 9. Be3 {[%clk 0:02:23.7]} 9... Bg7 {[%clk 0:02:31.8]}
10. a4 {[%clk 0:02:14.9]} 10... b4 {[%clk 0:02:32.1]} 11. Nd1 {[%clk 0:02:15]}
11... a5 {[%clk 0:02:33.7]} 12. Nf2 {[%clk 0:02:13.2]} 12... Qe7 {[%clk
0:02:18.5]} 13. O-O {[%clk 0:02:12.6]} 13... c5 {[%clk 0:01:58.5]} 14. dxc5
{[%clk 0:02:08.5]} 14... Nxc5 {[%clk 0:01:59.5]} 15. Bb5+ {[%clk 0:02:07.5]}
15... Bd7 {[%clk 0:01:59.1]} 16. Rfd1 {[%clk 0:01:53.8]} 16... Bxb5 {[%clk
0:01:47.5]} 17. axb5 {[%clk 0:01:55.7]} 17... Nb7 {[%clk 0:01:34.2]} 18. c3
{[%clk 0:01:32.8]} 18... b3 {[%clk 0:00:54.4]} 19. Nc1 {[%clk 0:01:21.1]} 19...
O-O {[%clk 0:00:55.2]} 20. Nxb3 {[%clk 0:01:12]} 20... Qe6 {[%clk 0:00:46.3]}
21. Nc1 {[%clk 0:01:10]} 21... Rfd8 {[%clk 0:00:47.7]} 22. Bxh6 {[%clk
0:01:09.6]} 22... d5 {[%clk 0:00:48.7]} 23. Bxg7 {[%clk 0:00:34.1]} 23... Kxg7
{[%clk 0:00:49.5]} 24. Ncd3 {[%clk 0:00:23.5]} 24... dxe4 {[%clk 0:00:45.5]} 25.
fxe4 {[%clk 0:00:25.4]} 25... Rh8 {[%clk 0:00:32.7]} 26. Qe3 {[%clk 0:00:25]}
26... Rh4 {[%clk 0:00:31]} 27. h3 {[%clk 0:00:20.6]} 27... Nd6 {[%clk
0:00:30.5]} 28. b3 {[%clk 0:00:15.9]} 28... Nxb5 {[%clk 0:00:30.4]} 29. Qc5
{[%clk 0:00:13.2]} 1/2-1

[Event "Open Nuevo Centro. Jornada 2"]
[Site "Chess.com"]
[Date "2020.06.26"]
[Round "6"]
[White "Casado Andreu, David"]
[Black "Yatseta Fernandez, Marc Kazymyr"]
[Result "0-1"]
[WhiteElo "1626"]
[BlackElo "1476"]
[TimeControl "180+2"]
[EndTime "11:35:42 PDT"]
[Termination "Victoria de K_73 por abandono"]

1. e4 {[%clk 0:03:01.9]} 1... e5 {[%clk 0:03:00.1]} 2. Nf3 {[%clk 0:03:02.8]}
2... Nc6 {[%clk 0:03:00.8]} 3. Bc4 {[%clk 0:03:04]} 3... d6 {[%clk 0:03:01.2]}
4. c3 {[%clk 0:03:00.3]} 4... Be7 {[%clk 0:03:02]} 5. d3 {[%clk 0:03:00]} 5...
Nf6 {[%clk 0:03:02.5]} 6. Bb3 {[%clk 0:03:01.2]} 6... O-O {[%clk 0:03:01.7]} 7.
Nbd2 {[%clk 0:03:01.2]} 7... Be6 {[%clk 0:02:54.7]} 8. Bc2 {[%clk 0:03:01.4]}
8... Qd7 {[%clk 0:02:54.8]} 9. Nf1 {[%clk 0:03:02.7]} 9... Bg4 {[%clk
0:02:54.4]} 10. Ng3 {[%clk 0:03:03.4]} 10... Nh5 {[%clk 0:02:48.4]} 11. Nxh5
{[%clk 0:01:44.2]} 11... Bxh5 {[%clk 0:02:48.4]} 12. h3 {[%clk 0:01:42.6]} 12...
Qe6 {[%clk 0:02:32.4]} 13. Rg1 {[%clk 0:01:37.9]} 13... f5 {[%clk 0:02:11.3]}
14. Bg5 {[%clk 0:01:31.1]} 14... Bxf3 {[%clk 0:02:10.3]} 15. gxf3 {[%clk
0:01:23.1]} 15... Qg6 {[%clk 0:01:57.1]} 16. Bb3+ {[%clk 0:01:04.2]} 16... Kh8
{[%clk 0:01:53.7]} 17. Qd2 {[%clk 0:01:03.3]} 17... h6 {[%clk 0:01:44.8]} 18.
Bxe7 {[%clk 0:00:59.2]} 18... Qxg1+ {[%clk 0:01:44]} 19. Ke2 {[%clk 0:01:00.7]}
19... Qh2 {[%clk 0:01:33.1]} 20. Bxf8 {[%clk 0:00:58.5]} 20... Rxf8 {[%clk
0:01:32.9]} 21. exf5 {[%clk 0:00:40.2]} 21... Qxh3 {[%clk 0:01:23.5]} 22. Qe3
{[%clk 0:00:40.4]} 22... Qxf5 {[%clk 0:01:13.3]} 23. Bd5 {[%clk 0:00:39.9]}
23... a6 {[%clk 0:01:10.5]} 24. Be4 {[%clk 0:00:40.9]} 24... Qf6 {[%clk
0:01:03.3]} 25. Rg1 {[%clk 0:00:41.7]} 25... g5 {[%clk 0:00:59.9]} 26. b4 {[%clk
0:00:33.4]} 26... Qf4 {[%clk 0:00:59.4]} 27. Rh1 {[%clk 0:00:21.3]} 27... Kg7
{[%clk 0:00:55.3]} 28. Qxf4 {[%clk 0:00:19.9]} 28... exf4 {[%clk 0:00:56]} 29.
Bxc6 {[%clk 0:00:19.9]} 29... bxc6 {[%clk 0:00:56.5]} 30. Kd2 {[%clk 0:00:21.8]}
30... Kg6 {[%clk 0:00:51]} 31. Re1 {[%clk 0:00:23.2]} 31... Kf6 {[%clk
0:00:47.5]} 32. a4 {[%clk 0:00:22.2]} 32... h5 {[%clk 0:00:46.1]} 33. c4 {[%clk
0:00:21.5]} 33... g4 {[%clk 0:00:46.9]} 34. fxg4 {[%clk 0:00:22]} 34... hxg4
{[%clk 0:00:48.8]} 35. b5 {[%clk 0:00:22.5]} 35... cxb5 {[%clk 0:00:48.5]} 36.
axb5 {[%clk 0:00:23.1]} 36... axb5 {[%clk 0:00:50]} 37. cxb5 {[%clk 0:00:24.5]}
37... Rb8 {[%clk 0:00:48]} 38. Rg1 {[%clk 0:00:18.3]} 38... Kf5 {[%clk 0:00:48]}
39. Rxg4 {[%clk 0:00:20.2]} 39... Kxg4 {[%clk 0:00:48.8]} 0

[Event "Open Nuevo Centro. Jornada 2"]
[Site "Chess.com"]
[Date "2020.06.26"]
[Round "6"]
[White "Yuste Valenzuela, Alejandro"]
[Black "Birnoveanu, Petru"]
[Result "1-0"]
[WhiteElo "1853"]
[BlackElo "1686"]
[TimeControl "180+2"]
[EndTime "11:35:48 PDT"]
[Termination "Victoria de alejandrito290 por tiempo"]

1. e4 {[%clk 0:03:01.9]} 1... e6 {[%clk 0:02:59.2]} 2. d4 {[%clk 0:03:02.4]}
2... d5 {[%clk 0:03:00.1]} 3. Nc3 {[%clk 0:03:03.7]} 3... dxe4 {[%clk
0:02:57.7]} 4. Nxe4 {[%clk 0:03:05.6]} 4... Nf6 {[%clk 0:02:57.3]} 5. Bd3 {[%clk
0:03:04.6]} 5... Be7 {[%clk 0:02:57.4]} 6. Nf3 {[%clk 0:03:04.4]} 6... Bd7
{[%clk 0:02:54.1]} 7. O-O {[%clk 0:03:02.8]} 7... Bc6 {[%clk 0:02:54.8]} 8. Qe2
{[%clk 0:03:03.1]} 8... Nbd7 {[%clk 0:02:54.3]} 9. c3 {[%clk 0:03:02.5]} 9...
Nb6 {[%clk 0:02:54.9]} 10. Bf4 {[%clk 0:02:48.7]} 10... Nbd5 {[%clk 0:02:50.4]}
11. Bg3 {[%clk 0:02:48.8]} 11... O-O {[%clk 0:02:45.6]} 12. Ne5 {[%clk
0:02:44.4]} 12... Be8 {[%clk 0:02:41]} 13. Nxf6+ {[%clk 0:02:40.6]} 13... Bxf6
{[%clk 0:02:38.7]} 14. f4 {[%clk 0:02:37.9]} 14... c6 {[%clk 0:02:38.6]} 15. f5
{[%clk 0:02:20.7]} 15... Bd7 {[%clk 0:02:28.6]} 16. fxe6 {[%clk 0:02:19]} 16...
Bxe6 {[%clk 0:02:26.5]} 17. Rae1 {[%clk 0:01:56.7]} 17... a6 {[%clk 0:02:21.2]}
18. a3 {[%clk 0:01:51.5]} 18... b5 {[%clk 0:02:20.2]} 19. Nxc6 {[%clk
0:01:44.4]} 19... Qd7 {[%clk 0:01:45.2]} 20. Ne5 {[%clk 0:01:41.4]} 20... Qb7
{[%clk 0:01:35.5]} 21. Bb1 {[%clk 0:01:27.5]} 21... Ne7 {[%clk 0:01:09.1]} 22.
Qc2 {[%clk 0:01:21.9]} 22... Ng6 {[%clk 0:01:09.7]} 23. h4 {[%clk 0:01:04.2]}
23... Bxe5 {[%clk 0:01:02.4]} 24. Bxe5 {[%clk 0:01:00.3]} 24... h5 {[%clk
0:00:35.6]} 25. Bg3 {[%clk 0:00:53]} 25... Qd7 {[%clk 0:00:31.6]} 26. Re5 {[%clk
0:00:37.4]} 26... Bg4 {[%clk 0:00:22.4]} 27. Rg5 {[%clk 0:00:33]} 27... Qc6
{[%clk 0:00:12.3]} 28. Be5 {[%clk 0:00:23.3]} 28... Rae8 {[%clk 0:00:02.8]} 29.
b4 {[%clk 0:00:20.7]} 1

[Event "Open Nuevo Centro. Jornada 2"]
[Site "Chess.com"]
[Date "2020.06.26"]
[Round "6"]
[White "Rodriguez Rodriguez, Joan David "]
[Black "Conejero Martínez, Víctor"]
[Result "0-1"]
[WhiteElo "1597"]
[BlackElo "1393"]
[TimeControl "180+2"]
[EndTime "11:36:00 PDT"]
[Termination "Victoria de Camelocota20 por tiempo"]

1. d4 {[%clk 0:03:01.9]} 1... d5 {[%clk 0:02:59.2]} 2. c4 {[%clk 0:03:02.9]}
2... Nf6 {[%clk 0:02:51.5]} 3. cxd5 {[%clk 0:03:03.7]} 3... Nxd5 {[%clk
0:02:51.8]} 4. e4 {[%clk 0:03:04.9]} 4... Nf6 {[%clk 0:02:44.7]} 5. Nc3 {[%clk
0:03:05.4]} 5... e6 {[%clk 0:02:42.5]} 6. Bg5 {[%clk 0:03:03]} 6... Be7 {[%clk
0:02:37.9]} 7. Nf3 {[%clk 0:03:00.8]} 7... O-O {[%clk 0:02:31.6]} 8. Be2 {[%clk
0:03:00.4]} 8... b6 {[%clk 0:02:29.4]} 9. O-O {[%clk 0:02:47.8]} 9... c5 {[%clk
0:02:23.9]} 10. Bxf6 {[%clk 0:02:19.3]} 10... Bxf6 {[%clk 0:02:19.9]} 11. dxc5
{[%clk 0:02:20]} 11... bxc5 {[%clk 0:02:05.6]} 12. Rc1 {[%clk 0:02:13.2]} 12...
Bb7 {[%clk 0:02:01.5]} 13. Qb3 {[%clk 0:01:57.8]} 13... Qe7 {[%clk 0:01:54.4]}
14. Rfd1 {[%clk 0:01:51.7]} 14... Nc6 {[%clk 0:01:46]} 15. Bb5 {[%clk
0:01:02.6]} 15... Ne5 {[%clk 0:01:44.2]} 16. Nxe5 {[%clk 0:00:58.1]} 16... Bxe5
{[%clk 0:01:44.7]} 17. Rd7 {[%clk 0:00:57.2]} 17... Qh4 {[%clk 0:01:42]} 18. g3
{[%clk 0:00:51.2]} 18... Qh6 {[%clk 0:01:31.3]} 19. f4 {[%clk 0:00:41.4]} 19...
Bxf4 {[%clk 0:01:24.3]} 20. gxf4 {[%clk 0:00:38.3]} 20... Qxf4 {[%clk
0:01:24.4]} 21. Rf1 {[%clk 0:00:35.7]} 21... Qg4+ {[%clk 0:01:22.9]} 22. Kh1
{[%clk 0:00:26.9]} 22... Bxe4+ {[%clk 0:01:15.1]} 23. Nxe4 {[%clk 0:00:25.5]}
23... Qxe4+ {[%clk 0:01:15.1]} 24. Qf3 {[%clk 0:00:18.9]} 24... Qb4 {[%clk
0:01:11.1]} 25. Rxf7 {[%clk 0:00:15.8]} 25... Rfd8 {[%clk 0:00:55.4]} 26. a4
{[%clk 0:00:13.5]} 26... Qxb2 {[%clk 0:00:50.8]} 27. Qg3 {[%clk 0:00:13.1]}
27... Rd2 {[%clk 0:00:44.4]} 28. Rg1 {[%clk 0:00:05.1]} 28... Kxf7 {[%clk
0:00:33.4]} 29. Bc6 {[%clk 0:00:04.3]} 29... Rad8 {[%clk 0:00:29.6]} 30. Be4
{[%clk 0:00:04.8]} 30... Re2 {[%clk 0:00:26.4]} 31. Qf3+ {[%clk 0:00:04.5]}
31... Kg8 {[%clk 0:00:22.5]} 32. Qg3 {[%clk 0:00:02.8]} 32... Rxe4 {[%clk
0:00:18.1]} 0

[Event "Open Nuevo Centro. Jornada 2"]
[Site "Chess.com"]
[Date "2020.06.26"]
[Round "6"]
[White "Valverde Alcaide, Miguel Alejandro"]
[Black "SIMARRO PEIRÓ, ANDRÉS"]
[Result "0-1"]
[WhiteElo "858"]
[BlackElo "1035"]
[TimeControl "180+2"]
[EndTime "11:36:02 PDT"]
[Termination "Victoria de AndresSP24 por tiempo"]

1. e4 {[%clk 0:03:00.9]} 1... e5 {[%clk 0:02:55.7]} 2. Nf3 {[%clk 0:02:59.1]}
2... Nc6 {[%clk 0:02:56.4]} 3. Bc4 {[%clk 0:02:59.1]} 3... Bc5 {[%clk 0:02:36]}
4. Ng5 {[%clk 0:02:49.1]} 4... Qxg5 {[%clk 0:02:33.2]} 5. g3 {[%clk 0:02:40.3]}
5... Qf6 {[%clk 0:02:28.9]} 6. Qe2 {[%clk 0:02:31.2]} 6... Nd4 {[%clk
0:02:27.4]} 7. Qd3 {[%clk 0:02:12.6]} 7... Nf3+ {[%clk 0:02:22.7]} 8. Kd1 {[%clk
0:02:04.3]} 8... Bxf2 {[%clk 0:02:12]} 9. Rf1 {[%clk 0:02:04.4]} 9... Nxh2
{[%clk 0:02:01.7]} 10. Qd5 {[%clk 0:01:48.9]} 10... Qf3+ {[%clk 0:01:56.1]} 11.
Be2 {[%clk 0:01:36.3]} 11... Qg2 {[%clk 0:01:42.4]} 12. c3 {[%clk 0:01:30.8]}
12... Nxf1 {[%clk 0:01:36.5]} 13. Bxf1 {[%clk 0:01:27.2]} 13... Qxf1+ {[%clk
0:01:29]} 14. Kc2 {[%clk 0:01:28]} 14... Qe2 {[%clk 0:01:20]} 15. Qxe5+ {[%clk
0:01:27.3]} 15... Ne7 {[%clk 0:01:16.6]} 16. Qxg7 {[%clk 0:01:27.2]} 16... Rf8
{[%clk 0:01:13]} 17. Na3 {[%clk 0:01:17.7]} 17... Qxe4+ {[%clk 0:01:09.4]} 18.
Kd1 {[%clk 0:01:17.1]} 18... Qf3+ {[%clk 0:01:07.3]} 19. Kc2 {[%clk 0:01:09.8]}
19... Qe4+ {[%clk 0:01:03.6]} 20. Kd1 {[%clk 0:01:10.3]} 20... Qe1+ {[%clk
0:01:00.5]} 21. Kc2 {[%clk 0:01:11]} 21... Bxg3 {[%clk 0:00:57.9]} 22. Qxh7
{[%clk 0:01:05.4]} 22... Rg8 {[%clk 0:00:46.4]} 23. d3 {[%clk 0:00:58.5]} 23...
Qe2+ {[%clk 0:00:43]} 24. Kb3 {[%clk 0:00:58]} 24... d6 {[%clk 0:00:40.5]} 25.
Bh6 {[%clk 0:00:55.4]} 25... Be6+ {[%clk 0:00:36.9]} 26. c4 {[%clk 0:00:42.6]}
26... Qe5 {[%clk 0:00:31.2]} 27. Rg1 {[%clk 0:00:24.9]} 27... Qc5 {[%clk
0:00:23]} 28. Rxg3 {[%clk 0:00:22.1]} 28... Rxg3 {[%clk 0:00:19.8]} 29. Qh8+
{[%clk 0:00:21.8]} 29... Kd7 {[%clk 0:00:19.5]} 30. Qxa8 {[%clk 0:00:21.2]}
30... Rxd3+ {[%clk 0:00:20]} 31. Kc2 {[%clk 0:00:08.3]} 31... Bxc4 {[%clk
0:00:19.2]} 32. Nxc4 {[%clk 0:00:07.2]} 32... Qxc4+ {[%clk 0:00:19.5]} 0

[Event "Open Nuevo Centro. Jornada 2"]
[Site "Chess.com"]
[Date "2020.06.26"]
[Round "6"]
[White "Marín Corresa, Arturo"]
[Black "Castellano López, Javier"]
[Result "1-0"]
[WhiteElo "2197"]
[BlackElo "1797"]
[TimeControl "180+2"]
[EndTime "11:36:16 PDT"]
[Termination "Victoria de Estivella por jaque mate"]

1. e4 {[%clk 0:03:01.9]} 1... d5 {[%clk 0:02:55.2]} 2. exd5 {[%clk 0:03:02.2]}
2... Qxd5 {[%clk 0:02:56.1]} 3. Nf3 {[%clk 0:03:03]} 3... Nf6 {[%clk 0:02:55.1]}
4. d4 {[%clk 0:03:01.9]} 4... Bg4 {[%clk 0:02:55.8]} 5. Be2 {[%clk 0:03:02.2]}
5... e6 {[%clk 0:02:56.3]} 6. a3 {[%clk 0:03:02.5]} 6... c6 {[%clk 0:02:54.9]}
7. c4 {[%clk 0:03:02.5]} 7... Qd8 {[%clk 0:02:55.2]} 8. Nc3 {[%clk 0:03:02.8]}
8... Bd6 {[%clk 0:02:53.8]} 9. Be3 {[%clk 0:03:02.6]} 9... Nbd7 {[%clk
0:02:53.9]} 10. Qb3 {[%clk 0:03:02.2]} 10... Qc7 {[%clk 0:02:50.4]} 11. O-O-O
{[%clk 0:02:46]} 11... Rc8 {[%clk 0:02:45.1]} 12. Kb1 {[%clk 0:02:45.8]} 12...
Bf5+ {[%clk 0:02:35.3]} 13. Ka1 {[%clk 0:02:42.7]} 13... a6 {[%clk 0:02:24.1]}
14. Rc1 {[%clk 0:02:41.9]} 14... Qb8 {[%clk 0:02:20.7]} 15. h3 {[%clk
0:02:41.1]} 15... O-O {[%clk 0:02:05.6]} 16. g4 {[%clk 0:02:30.7]} 16... Bg6
{[%clk 0:02:04.7]} 17. Nh4 {[%clk 0:02:10.3]} 17... b5 {[%clk 0:02:00.6]} 18. c5
{[%clk 0:02:02.6]} 18... Bf4 {[%clk 0:01:56.4]} 19. Nxg6 {[%clk 0:02:02.2]}
19... hxg6 {[%clk 0:01:56.5]} 20. h4 {[%clk 0:01:58.1]} 20... a5 {[%clk
0:01:47.8]} 21. g5 {[%clk 0:01:50.7]} 21... Nh5 {[%clk 0:01:43.8]} 22. Bxh5
{[%clk 0:01:49.3]} 22... gxh5 {[%clk 0:01:45.7]} 23. g6 {[%clk 0:01:49.9]} 23...
Bxe3 {[%clk 0:01:27.5]} 24. fxe3 {[%clk 0:01:50.2]} 24... b4 {[%clk 0:01:25.1]}
25. Ne4 {[%clk 0:01:40.8]} 25... bxa3 {[%clk 0:01:20.8]} 26. Qxa3 {[%clk
0:01:40.2]} 26... fxg6 {[%clk 0:01:12.2]} 27. Rhg1 {[%clk 0:01:36.6]} 27... Kh7
{[%clk 0:00:57.5]} 28. Ng5+ {[%clk 0:01:36.6]} 28... Kh6 {[%clk 0:00:56.1]} 29.
e4 {[%clk 0:01:30.5]} 29... e5 {[%clk 0:00:47.9]} 30. d5 {[%clk 0:01:18.1]}
30... Qb4 {[%clk 0:00:38.6]} 31. Qe3 {[%clk 0:01:11.3]} 31... Rf4 {[%clk
0:00:29.8]} 32. d6 {[%clk 0:01:01.3]} 32... a4 {[%clk 0:00:19.4]} 33. Rc3 {[%clk
0:01:00.7]} 33... Ra8 {[%clk 0:00:18.2]} 34. Ne6 {[%clk 0:00:50.8]} 34... Qxe4
{[%clk 0:00:12.8]} 35. Nxf4 {[%clk 0:00:48.5]} 35... Qxe3 {[%clk 0:00:13.5]} 36.
Rxe3 {[%clk 0:00:43.3]} 36... exf4 {[%clk 0:00:14.7]} 37. Re6 {[%clk 0:00:43.6]}
37... Nxc5 {[%clk 0:00:10.9]} 38. Rexg6+ {[%clk 0:00:42.4]} 38... Kh7 {[%clk
0:00:11.9]} 39. Rxg7+ {[%clk 0:00:43.1]} 39... Kh8 {[%clk 0:00:13.2]} 40. R7g5
{[%clk 0:00:41.8]} 40... Rg8 {[%clk 0:00:04.1]} 41. Rxh5# {[%clk 0:00:41.9]} 1

[Event "Open Nuevo Centro. Jornada 2"]
[Site "Chess.com"]
[Date "2020.06.26"]
[Round "6"]
[White "Valverde Caballero, Rafael"]
[Black "Gerona Maura, Jesus"]
[Result "1-0"]
[WhiteElo "1893"]
[BlackElo "1748"]
[TimeControl "180+2"]
[EndTime "11:36:16 PDT"]
[Termination "Victoria de Eumenes por abandono"]

1. c4 {[%clk 0:03:01.9]} 1... Nf6 {[%clk 0:02:58]} 2. Nc3 {[%clk 0:03:00]} 2...
e6 {[%clk 0:02:59]} 3. e4 {[%clk 0:03:00.6]} 3... d5 {[%clk 0:02:57.7]} 4. e5
{[%clk 0:03:00.8]} 4... d4 {[%clk 0:02:58]} 5. exf6 {[%clk 0:03:01.2]} 5... dxc3
{[%clk 0:02:58.9]} 6. bxc3 {[%clk 0:03:02.6]} 6... Qxf6 {[%clk 0:02:59]} 7. d4
{[%clk 0:03:04]} 7... h6 {[%clk 0:02:58.6]} 8. Nf3 {[%clk 0:03:04.1]} 8... c5
{[%clk 0:02:58.6]} 9. Be3 {[%clk 0:02:54.9]} 9... Nc6 {[%clk 0:02:52.4]} 10. Be2
{[%clk 0:02:52.3]} 10... cxd4 {[%clk 0:02:50.5]} 11. Nxd4 {[%clk 0:02:17.4]}
11... Ne5 {[%clk 0:02:37.1]} 12. O-O {[%clk 0:02:14]} 12... Be7 {[%clk
0:02:31.3]} 13. Nb5 {[%clk 0:02:03.4]} 13... O-O {[%clk 0:02:31.4]} 14. Bd4
{[%clk 0:02:03.7]} 14... Qf5 {[%clk 0:01:35.4]} 15. Nxa7 {[%clk 0:01:09.4]}
15... Bf6 {[%clk 0:01:11.5]} 16. Nb5 {[%clk 0:01:06.3]} 16... Nc6 {[%clk
0:00:58]} 17. Nd6 {[%clk 0:00:46.3]} 17... Nxd4 {[%clk 0:00:30.7]} 18. Nxf5
{[%clk 0:00:45.5]} 18... Nxf5 {[%clk 0:00:31.5]} 19. Bf3 {[%clk 0:00:46]} 19...
Rd8 {[%clk 0:00:31.1]} 20. Qc2 {[%clk 0:00:44.8]} 20... Bd7 {[%clk 0:00:28.8]}
21. Bxb7 {[%clk 0:00:41.6]} 21... Rab8 {[%clk 0:00:29.3]} 22. Be4 {[%clk
0:00:42.6]} 22... Nd6 {[%clk 0:00:28.6]} 23. Bd3 {[%clk 0:00:41.3]} 23... Ra8
{[%clk 0:00:26.2]} 24. Rfd1 {[%clk 0:00:40.9]} 24... Ba4 {[%clk 0:00:26.8]} 25.
Qe2 {[%clk 0:00:23.8]} 25... Bxd1 {[%clk 0:00:25.7]} 26. Qxd1 {[%clk 0:00:19.9]}
26... Bxc3 {[%clk 0:00:26.4]} 27. Rc1 {[%clk 0:00:16.4]} 27... Bf6 {[%clk
0:00:26.3]} 28. Qc2 {[%clk 0:00:16.6]} 28... Nb7 {[%clk 0:00:23.2]} 29. c5
{[%clk 0:00:17.3]} 29... Rac8 {[%clk 0:00:13.3]} 30. c6 {[%clk 0:00:18]} 30...
Na5 {[%clk 0:00:13.3]} 31. Be4 {[%clk 0:00:18.7]} 31... Be7 {[%clk 0:00:06.7]}
32. g3 {[%clk 0:00:18.7]} 32... f5 {[%clk 0:00:06.3]} 33. Bf3 {[%clk 0:00:18.3]}
33... Rd6 {[%clk 0:00:07]} 34. a4 {[%clk 0:00:17.8]} 34... Nxc6 {[%clk
0:00:07.8]} 35. Bxc6 {[%clk 0:00:18.5]} 35... Rdxc6 {[%clk 0:00:09.1]} 36. Qxc6
{[%clk 0:00:17.7]} 36... Rxc6 {[%clk 0:00:10.1]} 37. Rxc6 {[%clk 0:00:19.2]}
37... Kf7 {[%clk 0:00:09.2]} 38. a5 {[%clk 0:00:20.3]} 1

[Event "Open Nuevo Centro. Jornada 2"]
[Site "Chess.com"]
[Date "2020.06.26"]
[Round "6"]
[White "Aymerich Rosell, Pablo"]
[Black "Sanchez Saez, Francisco"]
[Result "1/2-1/2"]
[WhiteElo "1995"]
[BlackElo "2280"]
[TimeControl "180+2"]
[EndTime "11:36:19 PDT"]
[Termination "Tablas por repeticiÃ³n de movimientos"]

1. e4 {[%clk 0:03:01.9]} 1... c5 {[%clk 0:02:59.7]} 2. Nf3 {[%clk 0:03:02]} 2...
d6 {[%clk 0:03:00.7]} 3. d4 {[%clk 0:03:02.6]} 3... cxd4 {[%clk 0:03:01.8]} 4.
Nxd4 {[%clk 0:03:03.7]} 4... Nf6 {[%clk 0:03:02.8]} 5. Nc3 {[%clk 0:03:04.3]}
5... g6 {[%clk 0:03:04.2]} 6. Be3 {[%clk 0:03:04.8]} 6... Bg7 {[%clk 0:03:05.4]}
7. f3 {[%clk 0:03:05.8]} 7... O-O {[%clk 0:03:06.5]} 8. Qd2 {[%clk 0:03:04.8]}
8... Nc6 {[%clk 0:03:07.7]} 9. O-O-O {[%clk 0:03:05.3]} 9... d5 {[%clk
0:03:07.1]} 10. Qe1 {[%clk 0:03:05.9]} 10... e5 {[%clk 0:02:50.7]} 11. Nxc6
{[%clk 0:03:05.7]} 11... bxc6 {[%clk 0:02:52.6]} 12. exd5 {[%clk 0:03:06.5]}
12... Nxd5 {[%clk 0:02:53.3]} 13. Bc4 {[%clk 0:03:04.1]} 13... Be6 {[%clk
0:02:51.3]} 14. Ne4 {[%clk 0:03:01]} 14... Qc7 {[%clk 0:02:51.2]} 15. Bc5 {[%clk
0:03:00.4]} 15... Rfd8 {[%clk 0:02:51.7]} 16. Qh4 {[%clk 0:02:57.1]} 16... h6
{[%clk 0:02:23.7]} 17. g4 {[%clk 0:02:54.9]} 17... Nf4 {[%clk 0:02:05.6]} 18.
Bxe6 {[%clk 0:02:52.1]} 18... Nxe6 {[%clk 0:02:05.5]} 19. Qf2 {[%clk 0:02:48.4]}
19... Rd5 {[%clk 0:02:00.1]} 20. c4 {[%clk 0:02:19.9]} 20... Rxd1+ {[%clk
0:01:32.1]} 21. Rxd1 {[%clk 0:02:18.7]} 21... Rd8 {[%clk 0:01:29.4]} 22. Rxd8+
{[%clk 0:02:15.3]} 22... Qxd8 {[%clk 0:01:31.3]} 23. Qd2 {[%clk 0:02:04.1]}
23... Qh4 {[%clk 0:01:01.3]} 24. Bxa7 {[%clk 0:01:54]} 24... Qh3 {[%clk
0:00:59.2]} 25. Qf2 {[%clk 0:01:27.3]} 25... f5 {[%clk 0:00:58]} 26. gxf5 {[%clk
0:01:24]} 26... gxf5 {[%clk 0:00:59.9]} 27. Ng3 {[%clk 0:01:16]} 27... Qh4
{[%clk 0:00:43.3]} 28. b3 {[%clk 0:01:10.3]} 28... Nf4 {[%clk 0:00:27.8]} 29.
Kb1 {[%clk 0:01:01.3]} 29... Qd8 {[%clk 0:00:24.7]} 30. Qc2 {[%clk 0:00:46.5]}
30... e4 {[%clk 0:00:23]} 31. Nxf5 {[%clk 0:00:40.7]} 31... exf3 {[%clk
0:00:12.5]} 32. Nxg7 {[%clk 0:00:39.8]} 32... Kxg7 {[%clk 0:00:14.4]} 33. Qc3+
{[%clk 0:00:30.5]} 33... Kg8 {[%clk 0:00:12.9]} 34. Qxf3 {[%clk 0:00:28.3]}
34... Qf6 {[%clk 0:00:10.8]} 35. Be3 {[%clk 0:00:23.5]} 35... Qf5+ {[%clk
0:00:09.3]} 36. Ka1 {[%clk 0:00:18.3]} 36... Qf6+ {[%clk 0:00:09.7]} 37. Kb1
{[%clk 0:00:19]} 37... Qf5+ {[%clk 0:00:10.6]} 38. Ka1 {[%clk 0:00:18.9]} 38...
Qf6+ {[%clk 0:00:11]} 39. Kb1 {[%clk 0:00:19.1]} 1/2-1